[Event "Titled Tuesday Blitz January 11 2022"]
[White "Izoria, Zviad"]
[Black "Kevlishvili, Robby"]
[WhiteFideId "13601733"]
[BlackFideId "1040634"]
[WhiteElo "2626"]
[BlackElo "2584"]
[Result "0-1"]
[Round "05"]
[TimeControl "180+1"]
[Date "2022.01.11"]
[WhiteClock "0:00:09"]
[BlackClock "0:00:03"]

1. Nf3 {[%clk 0:03:00]}  d5 {[%clk 0:02:57]} 2. e3 {[%clk 0:03:00]}  Nf6 {[%clk 0:02:56]} 3. c4 {[%clk 0:02:59]}  e6 {[%clk 0:02:56]} 4. Nc3 {[%clk 0:02:59]}  b6 {[%clk 0:02:53]} 5. d4 {[%clk 0:02:58]}  Bb7 {[%clk 0:02:50]} 6. cxd5 {[%clk 0:02:58]}  exd5 {[%clk 0:02:50]} 7. Bb5+ {[%clk 0:02:58]}  c6 {[%clk 0:02:51]} 8. Bd3 {[%clk 0:02:58]}  Be7 {[%clk 0:02:52]} 9. O-O {[%clk 0:02:57]}  O-O {[%clk 0:02:52]} 10. Ne5 {[%clk 0:02:49]}  c5 {[%clk 0:02:52]} 11. Qf3 {[%clk 0:02:37]}  Nc6 {[%clk 0:02:52]} 12. Qh3 {[%clk 0:02:32]}  Nxe5 {[%clk 0:02:50]} 13. dxe5 {[%clk 0:02:31]}  Ne4 {[%clk 0:02:51]} 14. Rd1 {[%clk 0:02:19]}  Qc8 {[%clk 0:02:51]} 15. Qxc8 {[%clk 0:02:08]}  Rfxc8 {[%clk 0:02:52]} 16. Nxe4 {[%clk 0:02:08]}  dxe4 {[%clk 0:02:52]} 17. Bc4 {[%clk 0:02:09]}  Rd8 {[%clk 0:02:45]} 18. Bd2 {[%clk 0:02:09]}  Bc6 {[%clk 0:02:36]} 19. a4 {[%clk 0:01:54]}  Kf8 {[%clk 0:02:36]} 20. b3 {[%clk 0:01:47]}  Rd7 {[%clk 0:02:14]} 21. Bc3 {[%clk 0:01:46]}  Rxd1+ {[%clk 0:02:03]} 22. Rxd1 {[%clk 0:01:47]}  a6 {[%clk 0:02:03]} 23. Be2 {[%clk 0:01:23]}  b5 {[%clk 0:02:02]} 24. f4 {[%clk 0:01:21]}  exf3 {[%clk 0:01:55]} 25. Bxf3 {[%clk 0:01:19]}  Rc8 {[%clk 0:01:51]} 26. Bxc6 {[%clk 0:01:13]}  Rxc6 {[%clk 0:01:52]} 27. axb5 {[%clk 0:01:13]}  axb5 {[%clk 0:01:52]} 28. Rd7 {[%clk 0:01:13]}  b4 {[%clk 0:01:47]} 29. Be1 {[%clk 0:01:09]}  h5 {[%clk 0:01:39]} 30. Rb7 {[%clk 0:01:02]}  Ke8 {[%clk 0:01:39]} 31. Kf1 {[%clk 0:01:01]}  Re6 {[%clk 0:01:36]} 32. Bg3 {[%clk 0:00:53]}  h4 {[%clk 0:01:36]} 33. Bf2 {[%clk 0:00:53]}  Rxe5 {[%clk 0:01:35]} 34. Ke2 {[%clk 0:00:53]}  f5 {[%clk 0:01:30]} 35. Kd3 {[%clk 0:00:52]}  g5 {[%clk 0:01:27]} 36. h3 {[%clk 0:00:52]}  Kf7 {[%clk 0:01:22]} 37. g3 {[%clk 0:00:48]}  hxg3 {[%clk 0:01:05]} 38. Bxg3 {[%clk 0:00:49]}  Re4 {[%clk 0:00:50]} 39. Bd6 {[%clk 0:00:38]}  Kf6 {[%clk 0:00:49]} 40. Bxe7+ {[%clk 0:00:38]}  Rxe7 {[%clk 0:00:50]} 41. Rb6+ {[%clk 0:00:38]}  Re6 {[%clk 0:00:47]} 42. Rb5 {[%clk 0:00:37]}  Re5 {[%clk 0:00:33]} 43. Rb6+ {[%clk 0:00:37]}  Kg7 {[%clk 0:00:33]} 44. Rc6 {[%clk 0:00:34]}  Kf7 {[%clk 0:00:22]} 45. Rh6 {[%clk 0:00:29]}  g4 {[%clk 0:00:13]} 46. Rh5 {[%clk 0:00:22]}  Kf6 {[%clk 0:00:09]} 47. h4 {[%clk 0:00:20]}  g3 {[%clk 0:00:06]} 48. Rg5 {[%clk 0:00:20]}  f4 {[%clk 0:00:03]} 49. Rg4 {[%clk 0:00:12]}  Rxe3+ {[%clk 0:00:03]} 50. Kc4 {[%clk 0:00:12]}  Rc3+ {[%clk 0:00:02]} 51. Kb5 {[%clk 0:00:11]}  Kf5 {[%clk 0:00:02]} 52. Rg8 {[%clk 0:00:11]}  f3 {[%clk 0:00:02]} 53. Rxg3 {[%clk 0:00:10]}  f2 {[%clk 0:00:02]} 54. Rg8 {[%clk 0:00:11]}  Rf3 {[%clk 0:00:02]} 55. Rf8+ {[%clk 0:00:09]}  Ke4 {[%clk 0:00:02]} 56. Re8+ {[%clk 0:00:09]}  Kd3 {[%clk 0:00:02]} 57. Rd8+ {[%clk 0:00:09]}  Kc2 {[%clk 0:00:03]} 0-1


[Site "https://www.chess.com"]

[Event "Titled Tuesday Blitz January 11 2022"]
[White "Kamsky, Gata"]
[Black "Chigaev, Maksim"]
[WhiteFideId "2000024"]
[BlackFideId "4108116"]
[WhiteElo "2645"]
[BlackElo "2502"]
[Result "1-0"]
[Round "05"]
[TimeControl "180+1"]
[Date "2022.01.11"]
[WhiteClock "0:00:31"]
[BlackClock "0:00:16"]

1. e4 {[%clk 0:03:00]}  e6 {[%clk 0:02:58]} 2. d4 {[%clk 0:02:57]}  d5 {[%clk 0:02:58]} 3. exd5 {[%clk 0:02:58]}  exd5 {[%clk 0:02:58]} 4. Nf3 {[%clk 0:02:58]}  Bd6 {[%clk 0:02:55]} 5. Bd3 {[%clk 0:02:57]}  Ne7 {[%clk 0:02:53]} 6. O-O {[%clk 0:02:55]}  O-O {[%clk 0:02:53]} 7. h3 {[%clk 0:02:49]}  Nbc6 {[%clk 0:02:53]} 8. c4 {[%clk 0:02:40]}  dxc4 {[%clk 0:02:47]} 9. Bxc4 {[%clk 0:02:39]}  Nf5 {[%clk 0:02:45]} 10. Bg5 {[%clk 0:02:12]}  Be7 {[%clk 0:02:31]} 11. Bxe7 {[%clk 0:02:11]}  Ncxe7 {[%clk 0:02:26]} 12. Nc3 {[%clk 0:02:06]}  Nd6 {[%clk 0:02:23]} 13. Bb3 {[%clk 0:02:05]}  Ng6 {[%clk 0:02:22]} 14. Ne5 {[%clk 0:02:00]}  Qg5 {[%clk 0:02:22]} 15. Nxg6 {[%clk 0:01:50]}  hxg6 {[%clk 0:02:14]} 16. Qf3 {[%clk 0:01:49]}  Bf5 {[%clk 0:02:09]} 17. Rad1 {[%clk 0:01:47]}  Rfe8 {[%clk 0:02:03]} 18. Rfe1 {[%clk 0:01:39]}  Rxe1+ {[%clk 0:01:53]} 19. Rxe1 {[%clk 0:01:39]}  Rd8 {[%clk 0:01:54]} 20. g4 {[%clk 0:01:35]}  Bd7 {[%clk 0:01:49]} 21. Ne4 {[%clk 0:01:34]}  Qe7 {[%clk 0:01:40]} 22. Re3 {[%clk 0:01:32]}  Nxe4 {[%clk 0:01:31]} 23. Rxe4 {[%clk 0:01:32]}  Qf8 {[%clk 0:01:04]} 24. Rf4 {[%clk 0:01:31]}  Be8 {[%clk 0:01:04]} 25. Qxb7 {[%clk 0:01:28]}  Qd6 {[%clk 0:01:00]} 26. Qf3 {[%clk 0:01:25]}  Rd7 {[%clk 0:00:55]} 27. h4 {[%clk 0:01:21]}  Re7 {[%clk 0:00:53]} 28. Bd5 {[%clk 0:00:53]}  a5 {[%clk 0:00:47]} 29. Kg2 {[%clk 0:00:51]}  a4 {[%clk 0:00:47]} 30. a3 {[%clk 0:00:48]}  Rd7 {[%clk 0:00:29]} 31. Bc6 {[%clk 0:00:41]}  f6 {[%clk 0:00:27]} 32. Bxd7 {[%clk 0:00:40]}  Bxd7 {[%clk 0:00:28]} 33. d5 {[%clk 0:00:40]}  c6 {[%clk 0:00:24]} 34. Rxa4 {[%clk 0:00:35]}  cxd5 {[%clk 0:00:24]} 35. Rd4 {[%clk 0:00:35]}  Be6 {[%clk 0:00:23]} 36. Qe3 {[%clk 0:00:31]}  Qd7 {[%clk 0:00:18]} 37. f3 {[%clk 0:00:31]}  Qc6 {[%clk 0:00:18]} 38. Rd2 {[%clk 0:00:31]}  Bf7 {[%clk 0:00:15]} 39. Qd4 {[%clk 0:00:31]}  Qa4 {[%clk 0:00:16]} 1-0


[Site "https://www.chess.com"]

[Event "Titled Tuesday Blitz January 11 2022"]
[White "Khanin, Semen"]
[Black "Chizhikov, Vladislav"]
[WhiteFideId "4111990"]
[BlackFideId "4178157"]
[WhiteElo "2442"]
[BlackElo "2120"]
[Result "0-1"]
[Round "05"]
[TimeControl "180+1"]
[Date "2022.01.11"]
[WhiteClock "0:00:03"]
[BlackClock "0:00:11"]

1. c4 {[%clk 0:03:00]}  c5 {[%clk 0:02:59]} 2. Nc3 {[%clk 0:02:58]}  Nc6 {[%clk 0:03:00]} 3. g3 {[%clk 0:02:59]}  g6 {[%clk 0:03:00]} 4. Bg2 {[%clk 0:02:59]}  Bg7 {[%clk 0:03:01]} 5. d3 {[%clk 0:02:59]}  d6 {[%clk 0:03:01]} 6. Bd2 {[%clk 0:02:57]}  Bd7 {[%clk 0:03:01]} 7. Nf3 {[%clk 0:02:52]}  Qc8 {[%clk 0:03:00]} 8. h4 {[%clk 0:02:51]}  h5 {[%clk 0:02:58]} 9. Ng5 {[%clk 0:02:51]}  Nh6 {[%clk 0:02:58]} 10. e3 {[%clk 0:02:44]}  Rb8 {[%clk 0:02:57]} 11. Rb1 {[%clk 0:02:44]}  Nf5 {[%clk 0:02:56]} 12. O-O {[%clk 0:02:43]}  a6 {[%clk 0:02:56]} 13. a3 {[%clk 0:02:43]}  b5 {[%clk 0:02:56]} 14. cxb5 {[%clk 0:02:39]}  axb5 {[%clk 0:02:57]} 15. b4 {[%clk 0:02:38]}  cxb4 {[%clk 0:02:55]} 16. axb4 {[%clk 0:02:39]}  O-O {[%clk 0:02:52]} 17. Rc1 {[%clk 0:02:33]}  Qd8 {[%clk 0:02:52]} 18. Qb3 {[%clk 0:02:32]}  Ne5 {[%clk 0:02:48]} 19. Nd5 {[%clk 0:02:27]}  Rc8 {[%clk 0:02:33]} 20. Rxc8 {[%clk 0:02:24]}  Bxc8 {[%clk 0:02:32]} 21. Rc1 {[%clk 0:02:24]}  Bb7 {[%clk 0:02:30]} 22. Nf4 {[%clk 0:01:59]}  Bxg2 {[%clk 0:02:24]} 23. Kxg2 {[%clk 0:02:00]}  Qa8+ {[%clk 0:02:20]} 24. f3 {[%clk 0:01:49]}  Rc8 {[%clk 0:02:12]} 25. Rxc8+ {[%clk 0:01:46]}  Qxc8 {[%clk 0:02:12]} 26. Nd5 {[%clk 0:01:40]}  Qb7 {[%clk 0:02:01]} 27. Bc3 {[%clk 0:01:36]}  e6 {[%clk 0:02:00]} 28. Nf4 {[%clk 0:01:35]}  d5 {[%clk 0:01:55]} 29. e4 {[%clk 0:01:19]}  dxe4 {[%clk 0:01:38]} 30. dxe4 {[%clk 0:01:19]}  Ne3+ {[%clk 0:01:31]} 31. Kh3 {[%clk 0:01:18]}  N3c4 {[%clk 0:01:30]} 32. Qd1 {[%clk 0:01:16]}  Qd7 {[%clk 0:01:21]} 33. Qxd7 {[%clk 0:01:15]}  Nxd7 {[%clk 0:01:21]} 34. Bxg7 {[%clk 0:01:15]}  Kxg7 {[%clk 0:01:22]} 35. Nd3 {[%clk 0:01:15]}  Nb8 {[%clk 0:01:16]} 36. f4 {[%clk 0:01:13]}  Nc6 {[%clk 0:01:16]} 37. e5 {[%clk 0:01:12]}  Ne3 {[%clk 0:01:12]} 38. Ne4 {[%clk 0:01:11]}  Nd5 {[%clk 0:01:11]} 39. Nd6 {[%clk 0:01:08]}  Ncxb4 {[%clk 0:01:04]} 40. Nc5 {[%clk 0:01:08]}  Ne3 {[%clk 0:00:57]} 41. Nxb5 {[%clk 0:01:08]}  Nc6 {[%clk 0:00:48]} 42. Ne4 {[%clk 0:01:07]}  Nf5 {[%clk 0:00:45]} 43. Kg2 {[%clk 0:01:05]}  Ncd4 {[%clk 0:00:41]} 44. Na3 {[%clk 0:00:51]}  Kf8 {[%clk 0:00:41]} 45. Nc4 {[%clk 0:00:51]}  Ke7 {[%clk 0:00:41]} 46. Ng5 {[%clk 0:00:50]}  f6 {[%clk 0:00:40]} 47. exf6+ {[%clk 0:00:49]}  Kxf6 {[%clk 0:00:40]} 48. Nd2 {[%clk 0:00:48]}  Ke7 {[%clk 0:00:36]} 49. Nc4 {[%clk 0:00:47]}  Kf6 {[%clk 0:00:35]} 50. Ne5 {[%clk 0:00:47]}  Ne2 {[%clk 0:00:30]} 51. Ne4+ {[%clk 0:00:46]}  Kg7 {[%clk 0:00:29]} 52. Kf2 {[%clk 0:00:47]}  Ned4 {[%clk 0:00:28]} 53. Nc5 {[%clk 0:00:45]}  Kf6 {[%clk 0:00:27]} 54. Ncd7+ {[%clk 0:00:38]}  Kg7 {[%clk 0:00:26]} 55. Nc5 {[%clk 0:00:29]}  Kf6 {[%clk 0:00:26]} 56. Ne4+ {[%clk 0:00:30]}  Kg7 {[%clk 0:00:26]} 57. Ke1 {[%clk 0:00:31]}  Kh7 {[%clk 0:00:19]} 58. Kd2 {[%clk 0:00:31]}  Kg7 {[%clk 0:00:19]} 59. Kd3 {[%clk 0:00:31]}  Kh7 {[%clk 0:00:19]} 60. Kc4 {[%clk 0:00:31]}  Ne2 {[%clk 0:00:18]} 61. Ng5+ {[%clk 0:00:27]}  Kh6 {[%clk 0:00:17]} 62. Nxe6 {[%clk 0:00:26]}  Nexg3 {[%clk 0:00:16]} 63. Kd5 {[%clk 0:00:23]}  Nxh4 {[%clk 0:00:16]} 64. Nf7+ {[%clk 0:00:16]}  Kh7 {[%clk 0:00:16]} 65. Ke5 {[%clk 0:00:17]}  Nf3+ {[%clk 0:00:15]} 66. Kf6 {[%clk 0:00:15]}  Ne4+ {[%clk 0:00:15]} 67. Ke7 {[%clk 0:00:14]}  h4 {[%clk 0:00:16]} 68. Kf8 {[%clk 0:00:10]}  h3 {[%clk 0:00:12]} 69. f5 {[%clk 0:00:03]}  gxf5 {[%clk 0:00:11]} 0-1


[Site "https://www.chess.com"]

[Event "Titled Tuesday Blitz January 11 2022"]
[White "Kobalia, Mikhail"]
[Black "Maghsoodloo, Parham"]
[WhiteFideId "4119150"]
[BlackFideId "12539929"]
[WhiteElo "2667"]
[BlackElo "2630"]
[Result "1-0"]
[Round "05"]
[TimeControl "180+1"]
[Date "2022.01.11"]
[WhiteClock "0:00:37"]
[BlackClock "0:00:08"]

1. e4 {[%clk 0:02:20]}  c5 {[%clk 0:02:49]} 2. Nf3 {[%clk 0:02:18]}  d6 {[%clk 0:02:45]} 3. d4 {[%clk 0:02:18]}  cxd4 {[%clk 0:02:46]} 4. Nxd4 {[%clk 0:02:19]}  Nf6 {[%clk 0:02:46]} 5. Nc3 {[%clk 0:02:19]}  a6 {[%clk 0:02:47]} 6. Be3 {[%clk 0:02:19]}  e5 {[%clk 0:02:39]} 7. Nb3 {[%clk 0:02:19]}  Be6 {[%clk 0:02:37]} 8. Qd2 {[%clk 0:02:19]}  Nbd7 {[%clk 0:02:37]} 9. O-O-O {[%clk 0:02:19]}  Be7 {[%clk 0:02:33]} 10. Kb1 {[%clk 0:02:18]}  O-O {[%clk 0:02:27]} 11. f4 {[%clk 0:02:18]}  b5 {[%clk 0:02:25]} 12. f5 {[%clk 0:02:18]}  Bc4 {[%clk 0:02:20]} 13. g4 {[%clk 0:02:18]}  d5 {[%clk 0:02:12]} 14. Nxd5 {[%clk 0:02:07]}  Bxd5 {[%clk 0:01:52]} 15. exd5 {[%clk 0:02:06]}  Nxg4 {[%clk 0:01:52]} 16. d6 {[%clk 0:02:03]}  Bh4 {[%clk 0:01:48]} 17. Bg2 {[%clk 0:01:56]}  Rc8 {[%clk 0:01:45]} 18. Rhg1 {[%clk 0:01:40]}  a5 {[%clk 0:01:22]} 19. Bb7 {[%clk 0:01:21]}  Nxe3 {[%clk 0:01:20]} 20. Qxe3 {[%clk 0:00:54]}  Rb8 {[%clk 0:01:13]} 21. Bc6 {[%clk 0:00:52]}  a4 {[%clk 0:01:09]} 22. Nd2 {[%clk 0:00:48]}  Kh8 {[%clk 0:00:55]} 23. Qh3 {[%clk 0:00:44]}  Bf6 {[%clk 0:00:48]} 24. Bxd7 {[%clk 0:00:40]}  Qxd7 {[%clk 0:00:49]} 25. Ne4 {[%clk 0:00:40]}  Qd8 {[%clk 0:00:44]} 26. Qh5 {[%clk 0:00:38]}  Rc8 {[%clk 0:00:09]} 27. Rd3 {[%clk 0:00:38]}  Rc4 {[%clk 0:00:09]} 28. Rh3 {[%clk 0:00:37]}  h6 {[%clk 0:00:08]} 29. Qxh6+ {[%clk 0:00:37]} 1-0


[Site "https://www.chess.com"]

[Event "Titled Tuesday Blitz January 11 2022"]
[White "Mokshanov, Alexey"]
[Black "Narayanan.S.L"]
[WhiteFideId "24121657"]
[BlackFideId "5058422"]
[WhiteElo "2141"]
[BlackElo "2494"]
[Result "1-0"]
[Round "05"]
[TimeControl "180+1"]
[Date "2022.01.11"]
[WhiteClock "0:00:05"]
[BlackClock "0:00:40"]

1. e4 {[%clk 0:02:45]}  c6 {[%clk 0:03:00]} 2. d4 {[%clk 0:02:44]}  d5 {[%clk 0:03:00]} 3. e5 {[%clk 0:02:45]}  Bf5 {[%clk 0:03:00]} 4. h4 {[%clk 0:02:44]}  h5 {[%clk 0:02:59]} 5. c4 {[%clk 0:02:44]}  e6 {[%clk 0:02:59]} 6. Nc3 {[%clk 0:02:43]}  dxc4 {[%clk 0:03:00]} 7. Bxc4 {[%clk 0:02:42]}  Ne7 {[%clk 0:03:00]} 8. Nge2 {[%clk 0:02:34]}  Nd7 {[%clk 0:02:59]} 9. Bg5 {[%clk 0:02:33]}  Nb6 {[%clk 0:02:58]} 10. Bd3 {[%clk 0:02:29]}  Bxd3 {[%clk 0:02:57]} 11. Qxd3 {[%clk 0:02:30]}  Qd7 {[%clk 0:02:56]} 12. Ne4 {[%clk 0:02:28]}  Nf5 {[%clk 0:02:47]} 13. O-O {[%clk 0:02:16]}  Nd5 {[%clk 0:02:44]} 14. N2g3 {[%clk 0:01:50]}  Be7 {[%clk 0:02:41]} 15. Bxe7 {[%clk 0:01:25]}  Ndxe7 {[%clk 0:02:38]} 16. Rad1 {[%clk 0:01:20]}  Rd8 {[%clk 0:02:38]} 17. Qa3 {[%clk 0:01:16]}  a6 {[%clk 0:02:21]} 18. Rfe1 {[%clk 0:01:02]}  Nxh4 {[%clk 0:01:58]} 19. Nd6+ {[%clk 0:00:58]}  Kf8 {[%clk 0:01:58]} 20. Nge4 {[%clk 0:00:57]}  c5 {[%clk 0:01:45]} 21. Nxc5 {[%clk 0:00:54]}  Qc6 {[%clk 0:01:45]} 22. d5 {[%clk 0:00:33]}  Nxd5 {[%clk 0:01:31]} 23. Ncxb7 {[%clk 0:00:33]}  Ne3 {[%clk 0:01:23]} 24. Ne4+ {[%clk 0:00:28]}  Kg8 {[%clk 0:01:16]} 25. Rxd8+ {[%clk 0:00:26]}  Kh7 {[%clk 0:01:17]} 26. Rxh8+ {[%clk 0:00:25]}  Kxh8 {[%clk 0:01:17]} 27. Qxe3 {[%clk 0:00:25]}  Qxb7 {[%clk 0:01:16]} 28. Rd1 {[%clk 0:00:16]}  Nf5 {[%clk 0:01:01]} 29. Qf3 {[%clk 0:00:16]}  Qc7 {[%clk 0:00:56]} 30. Qxh5+ {[%clk 0:00:14]}  Nh6 {[%clk 0:00:55]} 31. Qg5 {[%clk 0:00:09]}  Qc2 {[%clk 0:00:53]} 32. Re1 {[%clk 0:00:06]}  Qxb2 {[%clk 0:00:52]} 33. Qd8+ {[%clk 0:00:06]}  Kh7 {[%clk 0:00:52]} 34. Ng5+ {[%clk 0:00:06]}  Kg6 {[%clk 0:00:53]} 35. Nf3 {[%clk 0:00:06]}  Qxa2 {[%clk 0:00:51]} 36. Qg5+ {[%clk 0:00:06]}  Kh7 {[%clk 0:00:50]} 37. Qd2 {[%clk 0:00:07]}  Qc4 {[%clk 0:00:50]} 38. Rd1 {[%clk 0:00:06]}  Qg4 {[%clk 0:00:48]} 39. Qd3+ {[%clk 0:00:06]}  Nf5 {[%clk 0:00:49]} 40. Kf1 {[%clk 0:00:04]}  a5 {[%clk 0:00:48]} 41. Nd4 {[%clk 0:00:04]}  a4 {[%clk 0:00:40]} 42. Nxf5 {[%clk 0:00:04]}  exf5 {[%clk 0:00:40]} 43. Qh3+ {[%clk 0:00:05]} 1-0


[Site "https://www.chess.com"]

[Event "Titled Tuesday Blitz January 11 2022"]
[White "Moroni, Luca Jr"]
[Black "Cunha, Lucas Aguiar"]
[WhiteFideId "865834"]
[BlackFideId "2125404"]
[WhiteElo "2573"]
[BlackElo "2361"]
[Result "1-0"]
[Round "05"]
[TimeControl "180+1"]
[Date "2022.01.11"]
[WhiteClock "0:00:06"]
[BlackClock "0:00:15"]

1. d4 {[%clk 0:03:00]}  Nf6 {[%clk 0:03:00]} 2. c4 {[%clk 0:03:00]}  e6 {[%clk 0:03:00]} 3. Nc3 {[%clk 0:03:00]}  Bb4 {[%clk 0:03:00]} 4. Nf3 {[%clk 0:03:00]}  b6 {[%clk 0:02:55]} 5. e3 {[%clk 0:02:59]}  Bb7 {[%clk 0:02:53]} 6. Bd3 {[%clk 0:02:59]}  Ne4 {[%clk 0:02:51]} 7. Qc2 {[%clk 0:02:55]}  f5 {[%clk 0:02:48]} 8. O-O {[%clk 0:02:54]}  Bxc3 {[%clk 0:02:43]} 9. bxc3 {[%clk 0:02:55]}  d6 {[%clk 0:02:43]} 10. Nd2 {[%clk 0:02:43]}  Qh4 {[%clk 0:02:13]} 11. f3 {[%clk 0:02:42]}  Nf6 {[%clk 0:02:05]} 12. c5 {[%clk 0:02:29]}  dxc5 {[%clk 0:01:56]} 13. dxc5 {[%clk 0:02:28]}  O-O {[%clk 0:01:53]} 14. Qb3 {[%clk 0:02:17]}  Bd5 {[%clk 0:01:46]} 15. c4 {[%clk 0:02:17]}  Bc6 {[%clk 0:01:40]} 16. Ba3 {[%clk 0:02:02]}  Re8 {[%clk 0:01:37]} 17. cxb6 {[%clk 0:01:53]}  axb6 {[%clk 0:01:38]} 18. c5 {[%clk 0:01:37]}  Qa4 {[%clk 0:01:31]} 19. Qxa4 {[%clk 0:01:15]}  Rxa4 {[%clk 0:01:31]} 20. Bb2 {[%clk 0:01:16]}  bxc5 {[%clk 0:01:29]} 21. Rfc1 {[%clk 0:01:08]}  Nd5 {[%clk 0:01:16]} 22. Rxc5 {[%clk 0:00:54]}  Nxe3 {[%clk 0:00:59]} 23. Nc4 {[%clk 0:00:36]}  Rd8 {[%clk 0:00:48]} 24. Be2 {[%clk 0:00:20]}  Nxc4 {[%clk 0:00:25]} 25. Bxc4 {[%clk 0:00:21]}  Kf7 {[%clk 0:00:24]} 26. Rxf5+ {[%clk 0:00:19]}  Ke7 {[%clk 0:00:23]} 27. Rc5 {[%clk 0:00:07]}  Kd6 {[%clk 0:00:20]} 28. Bd4 {[%clk 0:00:05]}  Nd7 {[%clk 0:00:20]} 29. Rxc6+ {[%clk 0:00:04]}  Kxc6 {[%clk 0:00:21]} 30. Rc1 {[%clk 0:00:04]}  Kd6 {[%clk 0:00:20]} 31. Bxg7 {[%clk 0:00:03]}  Nb6 {[%clk 0:00:19]} 32. Bb3 {[%clk 0:00:03]}  Rf4 {[%clk 0:00:18]} 33. Rd1+ {[%clk 0:00:03]}  Nd5 {[%clk 0:00:18]} 34. Bd4 {[%clk 0:00:02]}  c5 {[%clk 0:00:18]} 35. Bf2 {[%clk 0:00:03]}  Rf7 {[%clk 0:00:17]} 36. Bg3+ {[%clk 0:00:03]}  Kc6 {[%clk 0:00:17]} 37. Bc4 {[%clk 0:00:03]}  Ra7 {[%clk 0:00:17]} 38. Re1 {[%clk 0:00:04]}  Re8 {[%clk 0:00:16]} 39. f4 {[%clk 0:00:04]}  Ra4 {[%clk 0:00:16]} 40. Bb3 {[%clk 0:00:04]}  Raa8 {[%clk 0:00:16]} 41. f5 {[%clk 0:00:05]}  exf5 {[%clk 0:00:17]} 42. Rc1 {[%clk 0:00:04]}  f4 {[%clk 0:00:16]} 43. Bf2 {[%clk 0:00:05]}  Ne3 {[%clk 0:00:16]} 44. g3 {[%clk 0:00:05]}  fxg3 {[%clk 0:00:16]} 45. hxg3 {[%clk 0:00:06]}  Rad8 {[%clk 0:00:16]} 46. Rc3 {[%clk 0:00:04]}  Nd1 {[%clk 0:00:13]} 47. Rxc5+ {[%clk 0:00:03]}  Kb7 {[%clk 0:00:13]} 48. Bd5+ {[%clk 0:00:02]}  Ka6 {[%clk 0:00:11]} 49. Bd4 {[%clk 0:00:02]}  Ne3 {[%clk 0:00:10]} 50. Bxe3 {[%clk 0:00:02]}  Rxe3 {[%clk 0:00:10]} 51. g4 {[%clk 0:00:02]}  Re5 {[%clk 0:00:10]} 52. Bc4+ {[%clk 0:00:03]}  Kb6 {[%clk 0:00:10]} 53. Rxe5 {[%clk 0:00:04]}  Rd4 {[%clk 0:00:09]} 54. Be2 {[%clk 0:00:04]}  Rd7 {[%clk 0:00:09]} 55. a4 {[%clk 0:00:04]}  Rg7 {[%clk 0:00:10]} 56. a5+ {[%clk 0:00:04]}  Ka7 {[%clk 0:00:11]} 57. Kf2 {[%clk 0:00:04]}  Kb7 {[%clk 0:00:12]} 58. Bf3+ {[%clk 0:00:05]}  Ka7 {[%clk 0:00:13]} 59. Re6 {[%clk 0:00:05]}  Rf7 {[%clk 0:00:13]} 60. a6 {[%clk 0:00:05]}  Rg7 {[%clk 0:00:13]} 61. Kg3 {[%clk 0:00:05]}  Rc7 {[%clk 0:00:14]} 62. Bb7 {[%clk 0:00:06]}  Rc4 {[%clk 0:00:15]} 63. Kh4 {[%clk 0:00:06]}  h6 {[%clk 0:00:15]} 64. Rxh6 {[%clk 0:00:06]} 1-0


[Site "https://www.chess.com"]

[Event "Titled Tuesday Blitz January 11 2022"]
[White "Moskalenko, Alexander"]
[Black "Makhnev, Denis"]
[WhiteFideId "4155351"]
[BlackFideId "13707647"]
[WhiteElo "2515"]
[BlackElo "2491"]
[Result "1-0"]
[Round "05"]
[TimeControl "180+1"]
[Date "2022.01.11"]
[WhiteClock "0:00:37"]
[BlackClock "0:00:19"]

1. Nf3 {[%clk 0:03:00]}  Nf6 {[%clk 0:02:59]} 2. g3 {[%clk 0:03:01]}  d5 {[%clk 0:02:58]} 3. Bg2 {[%clk 0:03:02]}  c6 {[%clk 0:02:58]} 4. O-O {[%clk 0:03:03]}  Bf5 {[%clk 0:02:58]} 5. d3 {[%clk 0:02:58]}  Nbd7 {[%clk 0:02:57]} 6. b3 {[%clk 0:02:54]}  e6 {[%clk 0:02:51]} 7. Nh4 {[%clk 0:02:54]}  Bg4 {[%clk 0:02:49]} 8. h3 {[%clk 0:02:54]}  Bh5 {[%clk 0:02:50]} 9. g4 {[%clk 0:02:54]}  Bg6 {[%clk 0:02:42]} 10. Bb2 {[%clk 0:02:49]}  Bd6 {[%clk 0:02:09]} 11. e3 {[%clk 0:02:46]}  Be5 {[%clk 0:01:56]} 12. Bxe5 {[%clk 0:02:35]}  Nxe5 {[%clk 0:01:57]} 13. f4 {[%clk 0:02:35]}  Ned7 {[%clk 0:01:55]} 14. Nd2 {[%clk 0:02:34]}  Ng8 {[%clk 0:01:52]} 15. Nhf3 {[%clk 0:02:29]}  Ne7 {[%clk 0:01:51]} 16. e4 {[%clk 0:02:17]}  f6 {[%clk 0:01:43]} 17. e5 {[%clk 0:02:09]}  fxe5 {[%clk 0:01:40]} 18. Nxe5 {[%clk 0:02:10]}  Nxe5 {[%clk 0:01:38]} 19. fxe5 {[%clk 0:02:11]}  Qb6+ {[%clk 0:01:38]} 20. Kh2 {[%clk 0:02:09]}  O-O-O {[%clk 0:01:24]} 21. Qf3 {[%clk 0:02:05]}  h5 {[%clk 0:01:23]} 22. Kg3 {[%clk 0:02:04]}  hxg4 {[%clk 0:01:20]} 23. hxg4 {[%clk 0:02:05]}  Rdf8 {[%clk 0:01:14]} 24. Qxf8+ {[%clk 0:02:02]}  Rxf8 {[%clk 0:01:13]} 25. Rxf8+ {[%clk 0:02:03]}  Kd7 {[%clk 0:01:13]} 26. Nf3 {[%clk 0:02:03]}  Qc5 {[%clk 0:01:06]} 27. c4 {[%clk 0:01:41]}  Bxd3 {[%clk 0:01:04]} 28. Rf7 {[%clk 0:01:41]}  dxc4 {[%clk 0:00:58]} 29. Rd1 {[%clk 0:01:36]}  Ke8 {[%clk 0:00:52]} 30. Rxg7 {[%clk 0:01:36]}  c3 {[%clk 0:00:48]} 31. Rxd3 {[%clk 0:00:56]}  c2 {[%clk 0:00:47]} 32. Rd6 {[%clk 0:00:43]}  Nd5 {[%clk 0:00:26]} 33. Rxe6+ {[%clk 0:00:37]}  Kf8 {[%clk 0:00:25]} 34. Rxb7 {[%clk 0:00:37]}  c1=Q {[%clk 0:00:21]} 35. Rd6 {[%clk 0:00:38]}  Qf4+ {[%clk 0:00:20]} 36. Kh3 {[%clk 0:00:38]}  Qf2 {[%clk 0:00:19]} 37. Rd8# {[%clk 0:00:37]} 1-0


[Site "https://www.chess.com"]